[Event "Titled Tuesday Blitz May 4 2021"]
[White "Pichot, Alan"]
[Black "Crevatin, Leo"]
[WhiteFideId "110973"]
[BlackFideId "1726307"]
[WhiteElo "2622"]
[BlackElo "2081"]
[Result "1-0"]
[Round "10"]
[TimeControl "180+1"]
[Date "2021.05.04"]
[WhiteClock "0:01:19"]
[BlackClock "0:00:25"]

1. e4 {[%clk 0:03:00]}  c6 {[%clk 0:02:59]} 2. d4 {[%clk 0:02:58]}  d5 {[%clk 0:03:00]} 3. e5 {[%clk 0:02:58]}  c5 {[%clk 0:03:00]} 4. c3 {[%clk 0:02:57]}  Nc6 {[%clk 0:02:57]} 5. Nf3 {[%clk 0:02:57]}  cxd4 {[%clk 0:02:55]} 6. cxd4 {[%clk 0:02:57]}  Bg4 {[%clk 0:02:55]} 7. Bb5 {[%clk 0:02:55]}  Rc8 {[%clk 0:02:54]} 8. Nc3 {[%clk 0:02:55]}  e6 {[%clk 0:02:53]} 9. h3 {[%clk 0:02:54]}  Bh5 {[%clk 0:02:53]} 10. O-O {[%clk 0:02:51]}  a6 {[%clk 0:02:52]} 11. Bxc6+ {[%clk 0:02:51]}  Rxc6 {[%clk 0:02:51]} 12. Be3 {[%clk 0:02:51]}  Bb4 {[%clk 0:02:41]} 13. Ne2 {[%clk 0:02:38]}  Bxf3 {[%clk 0:02:39]} 14. gxf3 {[%clk 0:02:39]}  Ne7 {[%clk 0:02:38]} 15. Ng3 {[%clk 0:02:39]}  h5 {[%clk 0:02:36]} 16. Qb3 {[%clk 0:02:28]}  Ba5 {[%clk 0:02:26]} 17. Bg5 {[%clk 0:02:20]}  h4 {[%clk 0:02:23]} 18. Ne2 {[%clk 0:02:20]}  Rh5 {[%clk 0:02:16]} 19. f4 {[%clk 0:02:16]}  b5 {[%clk 0:02:09]} 20. Rac1 {[%clk 0:02:12]}  Rc4 {[%clk 0:02:07]} 21. Qf3 {[%clk 0:02:09]}  g6 {[%clk 0:02:04]} 22. b3 {[%clk 0:02:09]}  Rxc1 {[%clk 0:01:55]} 23. Rxc1 {[%clk 0:02:10]}  Qd7 {[%clk 0:01:55]} 24. a4 {[%clk 0:02:02]}  b4 {[%clk 0:01:39]} 25. Qd3 {[%clk 0:01:59]}  Qb7 {[%clk 0:01:39]} 26. Qc2 {[%clk 0:01:50]}  Rh8 {[%clk 0:01:29]} 27. Qc5 {[%clk 0:01:46]}  Bd8 {[%clk 0:01:23]} 28. Qd6 {[%clk 0:01:41]}  Qa8 {[%clk 0:01:01]} 29. Rc7 {[%clk 0:01:21]}  Nf5 {[%clk 0:00:24]} 30. Qd7+ {[%clk 0:01:18]}  Kf8 {[%clk 0:00:25]} 31. Qxf7# {[%clk 0:01:19]} 1-0


[Site "https://www.chess.com"]

[Event "Titled Tuesday Blitz May 4 2021"]
[White "Poormosavi, Seyed Kian"]
[Black "Titichoca Daza, Daniel"]
[WhiteFideId "12585807"]
[BlackFideId "3309550"]
[WhiteElo "2134"]
[BlackElo "1910"]
[Result "1-0"]
[Round "10"]
[TimeControl "180+1"]
[Date "2021.05.04"]
[WhiteClock "0:01:25"]
[BlackClock "0:01:20"]

1. e4 {[%clk 0:02:39]}  c5 {[%clk 0:02:58]} 2. Nf3 {[%clk 0:02:39]}  d6 {[%clk 0:02:58]} 3. c4 {[%clk 0:02:38]}  Bg4 {[%clk 0:02:56]} 4. Be2 {[%clk 0:02:38]}  Nc6 {[%clk 0:02:56]} 5. Nc3 {[%clk 0:02:34]}  Bxf3 {[%clk 0:02:54]} 6. Bxf3 {[%clk 0:02:33]}  g6 {[%clk 0:02:54]} 7. h4 {[%clk 0:02:30]}  h5 {[%clk 0:02:48]} 8. d3 {[%clk 0:02:29]}  Bg7 {[%clk 0:02:36]} 9. Be3 {[%clk 0:02:23]}  e6 {[%clk 0:02:36]} 10. Be2 {[%clk 0:02:19]}  Nge7 {[%clk 0:02:35]} 11. Qd2 {[%clk 0:02:11]}  Nd4 {[%clk 0:02:31]} 12. O-O-O {[%clk 0:02:08]}  a6 {[%clk 0:02:24]} 13. Kb1 {[%clk 0:01:58]}  Qd7 {[%clk 0:02:09]} 14. g4 {[%clk 0:01:55]}  hxg4 {[%clk 0:02:07]} 15. Bxg4 {[%clk 0:01:56]}  b5 {[%clk 0:02:06]} 16. h5 {[%clk 0:01:52]}  gxh5 {[%clk 0:02:04]} 17. Rxh5 {[%clk 0:01:51]}  Rxh5 {[%clk 0:02:02]} 18. Bxh5 {[%clk 0:01:52]}  b4 {[%clk 0:02:03]} 19. Ne2 {[%clk 0:01:49]}  Nec6 {[%clk 0:01:54]} 20. Bg5 {[%clk 0:01:42]}  Nxe2 {[%clk 0:01:44]} 21. Qxe2 {[%clk 0:01:39]}  Nd4 {[%clk 0:01:43]} 22. Qg4 {[%clk 0:01:38]}  Qa4 {[%clk 0:01:30]} 23. Rc1 {[%clk 0:01:36]}  b3 {[%clk 0:01:23]} 24. a3 {[%clk 0:01:27]}  Nc2 {[%clk 0:01:20]} 25. Qxe6+ {[%clk 0:01:25]} 1-0


[Site "https://www.chess.com"]

[Event "Titled Tuesday Blitz May 4 2021"]
[White "Prithu Gupta"]
[Black "Aditya Mittal"]
[WhiteFideId "46618546"]
[BlackFideId "35042025"]
[WhiteElo "1775"]
[BlackElo "2171"]
[Result "1-0"]
[Round "10"]
[TimeControl "180+1"]
[Date "2021.05.04"]
[WhiteClock "0:00:16"]
[BlackClock "0:00:16"]

1. c4 {[%clk 0:03:00]}  Nf6 {[%clk 0:03:00]} 2. g3 {[%clk 0:03:01]}  c6 {[%clk 0:02:59]} 3. Bg2 {[%clk 0:03:00]}  d5 {[%clk 0:03:00]} 4. Nf3 {[%clk 0:03:01]}  g6 {[%clk 0:02:57]} 5. O-O {[%clk 0:03:01]}  Bg7 {[%clk 0:02:57]} 6. b3 {[%clk 0:03:01]}  O-O {[%clk 0:02:57]} 7. Bb2 {[%clk 0:03:01]}  Nbd7 {[%clk 0:02:58]} 8. d3 {[%clk 0:02:57]}  Re8 {[%clk 0:02:58]} 9. Nc3 {[%clk 0:02:16]}  e5 {[%clk 0:02:58]} 10. cxd5 {[%clk 0:02:16]}  Nxd5 {[%clk 0:02:58]} 11. Rc1 {[%clk 0:02:12]}  N7b6 {[%clk 0:02:54]} 12. a3 {[%clk 0:02:11]}  f5 {[%clk 0:02:54]} 13. b4 {[%clk 0:02:11]}  Kh8 {[%clk 0:02:52]} 14. h4 {[%clk 0:02:11]}  Be6 {[%clk 0:02:44]} 15. b5 {[%clk 0:02:02]}  Nxc3 {[%clk 0:02:27]} 16. Bxc3 {[%clk 0:02:01]}  Bd5 {[%clk 0:02:27]} 17. bxc6 {[%clk 0:02:00]}  Bxc6 {[%clk 0:02:25]} 18. Ng5 {[%clk 0:01:58]}  Qd7 {[%clk 0:02:05]} 19. e4 {[%clk 0:01:38]}  h6 {[%clk 0:02:03]} 20. exf5 {[%clk 0:00:45]}  hxg5 {[%clk 0:01:44]} 21. fxg6 {[%clk 0:00:42]}  g4 {[%clk 0:01:44]} 22. Re1 {[%clk 0:00:30]}  Bxg2 {[%clk 0:01:42]} 23. Kxg2 {[%clk 0:00:31]}  Qd5+ {[%clk 0:01:42]} 24. Re4 {[%clk 0:00:30]}  Nd7 {[%clk 0:01:35]} 25. Qxg4 {[%clk 0:00:19]}  Nf6 {[%clk 0:01:35]} 26. Qf5 {[%clk 0:00:20]}  Kg8 {[%clk 0:01:14]} 27. h5 {[%clk 0:00:06]}  Nxe4 {[%clk 0:01:08]} 28. dxe4 {[%clk 0:00:07]}  Qe6 {[%clk 0:01:09]} 29. Qg5 {[%clk 0:00:08]}  Qf6 {[%clk 0:01:08]} 30. Qf5 {[%clk 0:00:08]}  Qxf5 {[%clk 0:01:07]} 31. exf5 {[%clk 0:00:09]}  Rac8 {[%clk 0:01:07]} 32. Bd2 {[%clk 0:00:09]}  Rxc1 {[%clk 0:01:07]} 33. Bxc1 {[%clk 0:00:10]}  Rc8 {[%clk 0:01:07]} 34. Be3 {[%clk 0:00:10]}  Rc3 {[%clk 0:00:57]} 35. Bg5 {[%clk 0:00:09]}  e4 {[%clk 0:00:43]} 36. f6 {[%clk 0:00:09]}  Rc5 {[%clk 0:00:39]} 37. f7+ {[%clk 0:00:07]}  Kf8 {[%clk 0:00:39]} 38. Bf4 {[%clk 0:00:07]}  Rc6 {[%clk 0:00:30]} 39. Kh3 {[%clk 0:00:05]}  b5 {[%clk 0:00:20]} 40. Kg4 {[%clk 0:00:05]}  a5 {[%clk 0:00:20]} 41. Kf5 {[%clk 0:00:06]}  Rf6+ {[%clk 0:00:18]} 42. Kg5 {[%clk 0:00:03]}  b4 {[%clk 0:00:14]} 43. h6 {[%clk 0:00:03]}  Rxf7 {[%clk 0:00:05]} 44. Bd6+ {[%clk 0:00:02]}  Kg8 {[%clk 0:00:04]} 45. gxf7+ {[%clk 0:00:03]}  Kxf7 {[%clk 0:00:04]} 46. hxg7 {[%clk 0:00:04]}  Kxg7 {[%clk 0:00:02]} 47. axb4 {[%clk 0:00:03]}  a4 {[%clk 0:00:03]} 48. Be5+ {[%clk 0:00:03]}  Kf7 {[%clk 0:00:04]} 49. Ba1 {[%clk 0:00:04]}  Ke6 {[%clk 0:00:05]} 50. Kf4 {[%clk 0:00:04]}  Kd5 {[%clk 0:00:05]} 51. g4 {[%clk 0:00:04]}  Kc4 {[%clk 0:00:06]} 52. g5 {[%clk 0:00:05]}  Kb3 {[%clk 0:00:07]} 53. g6 {[%clk 0:00:05]}  Ka2 {[%clk 0:00:08]} 54. g7 {[%clk 0:00:06]}  e3 {[%clk 0:00:09]} 55. g8=Q+ {[%clk 0:00:07]}  Kxa1 {[%clk 0:00:09]} 56. fxe3 {[%clk 0:00:07]}  a3 {[%clk 0:00:09]} 57. Qa8 {[%clk 0:00:08]}  Ka2 {[%clk 0:00:09]} 58. Qxa3+ {[%clk 0:00:09]}  Kb1 {[%clk 0:00:10]} 59. e4 {[%clk 0:00:10]}  Kc2 {[%clk 0:00:10]} 60. Kf5 {[%clk 0:00:10]}  Kb1 {[%clk 0:00:11]} 61. e5 {[%clk 0:00:11]}  Kc2 {[%clk 0:00:11]} 62. Kf6 {[%clk 0:00:12]}  Kd2 {[%clk 0:00:12]} 63. e6 {[%clk 0:00:13]}  Kc2 {[%clk 0:00:13]} 64. Kf7 {[%clk 0:00:14]}  Kb1 {[%clk 0:00:14]} 65. e7 {[%clk 0:00:15]}  Kc2 {[%clk 0:00:15]} 66. e8=Q {[%clk 0:00:16]}  Kb1 {[%clk 0:00:16]} 67. Qe1+ {[%clk 0:00:16]} 1-0


[Site "https://www.chess.com"]

[Event "Titled Tuesday Blitz May 4 2021"]
[White "Quirke, Jeffrey"]
[Black "Hartikainen, Jarmo"]
[WhiteFideId "2013029"]
[BlackFideId "503134"]
[WhiteElo "2234"]
[BlackElo "2093"]
[Result "0-1"]
[Round "10"]
[TimeControl "180+1"]
[Date "2021.05.04"]
[WhiteClock "0:00:03"]
[BlackClock "0:00:17"]

1. d4 {[%clk 0:03:00]}  Nf6 {[%clk 0:02:59]} 2. c4 {[%clk 0:03:00]}  g6 {[%clk 0:02:59]} 3. Nc3 {[%clk 0:03:00]}  d5 {[%clk 0:02:59]} 4. cxd5 {[%clk 0:03:00]}  Nxd5 {[%clk 0:03:00]} 5. e4 {[%clk 0:03:01]}  Nxc3 {[%clk 0:03:00]} 6. bxc3 {[%clk 0:03:02]}  Bg7 {[%clk 0:03:01]} 7. Nf3 {[%clk 0:03:02]}  c5 {[%clk 0:03:01]} 8. Be3 {[%clk 0:03:03]}  O-O {[%clk 0:02:55]} 9. Be2 {[%clk 0:03:03]}  Nc6 {[%clk 0:02:50]} 10. O-O {[%clk 0:02:58]}  cxd4 {[%clk 0:02:34]} 11. cxd4 {[%clk 0:02:56]}  b6 {[%clk 0:02:19]} 12. Rc1 {[%clk 0:02:35]}  Bb7 {[%clk 0:02:18]} 13. d5 {[%clk 0:02:30]}  Ne5 {[%clk 0:01:59]} 14. Nxe5 {[%clk 0:02:29]}  Bxe5 {[%clk 0:01:58]} 15. f4 {[%clk 0:02:23]}  Bg7 {[%clk 0:01:56]} 16. Qd2 {[%clk 0:02:20]}  Rc8 {[%clk 0:01:42]} 17. Bf3 {[%clk 0:02:15]}  e6 {[%clk 0:01:15]} 18. d6 {[%clk 0:02:11]}  e5 {[%clk 0:01:10]} 19. d7 {[%clk 0:01:46]}  Rc7 {[%clk 0:00:58]} 20. Rxc7 {[%clk 0:01:38]}  Qxc7 {[%clk 0:00:59]} 21. Rc1 {[%clk 0:01:37]}  Qb8 {[%clk 0:00:32]} 22. f5 {[%clk 0:00:54]}  Rd8 {[%clk 0:00:29]} 23. fxg6 {[%clk 0:00:43]}  hxg6 {[%clk 0:00:28]} 24. Bg4 {[%clk 0:00:30]}  Kh7 {[%clk 0:00:20]} 25. Bg5 {[%clk 0:00:27]}  f6 {[%clk 0:00:19]} 26. Be3 {[%clk 0:00:26]}  Bf8 {[%clk 0:00:19]} 27. Qd3 {[%clk 0:00:16]}  Qd6 {[%clk 0:00:18]} 28. Qxd6 {[%clk 0:00:07]}  Bxd6 {[%clk 0:00:19]} 29. Rd1 {[%clk 0:00:06]}  Be7 {[%clk 0:00:18]} 30. Bf3 {[%clk 0:00:03]}  Bc6 {[%clk 0:00:17]} 0-1


[Site "https://www.chess.com"]

[Event "Titled Tuesday Blitz May 4 2021"]
[White "Quparadze, Giga"]
[Black "Deac, Bogdan-Daniel"]
[WhiteFideId "13602250"]
[BlackFideId "1226380"]
[WhiteElo "2658"]
[BlackElo "2605"]
[Result "0-1"]
[Round "10"]
[TimeControl "180+1"]
[Date "2021.05.04"]
[WhiteClock "0:00:03"]
[BlackClock "0:00:04"]

1. e4 {[%clk 0:03:00]}  c5 {[%clk 0:02:59]} 2. Nf3 {[%clk 0:03:00]}  d6 {[%clk 0:03:00]} 3. d4 {[%clk 0:02:59]}  cxd4 {[%clk 0:03:01]} 4. Nxd4 {[%clk 0:03:00]}  Nf6 {[%clk 0:03:01]} 5. Nc3 {[%clk 0:03:00]}  a6 {[%clk 0:03:02]} 6. g3 {[%clk 0:02:59]}  g6 {[%clk 0:03:01]} 7. Bg2 {[%clk 0:02:59]}  Bg7 {[%clk 0:03:01]} 8. O-O {[%clk 0:02:59]}  O-O {[%clk 0:03:02]} 9. a4 {[%clk 0:02:59]}  Nc6 {[%clk 0:02:59]} 10. Nde2 {[%clk 0:02:58]}  Rb8 {[%clk 0:02:57]} 11. h3 {[%clk 0:02:56]}  b5 {[%clk 0:02:40]} 12. axb5 {[%clk 0:02:57]}  axb5 {[%clk 0:02:41]} 13. Be3 {[%clk 0:02:56]}  e6 {[%clk 0:02:34]} 14. Nd4 {[%clk 0:02:46]}  Nxd4 {[%clk 0:02:24]} 15. Bxd4 {[%clk 0:02:47]}  b4 {[%clk 0:02:19]} 16. Ne2 {[%clk 0:02:47]}  e5 {[%clk 0:02:19]} 17. Ba7 {[%clk 0:02:44]}  Rb7 {[%clk 0:02:17]} 18. c3 {[%clk 0:02:39]}  Be6 {[%clk 0:01:56]} 19. cxb4 {[%clk 0:02:33]}  Qc7 {[%clk 0:01:38]} 20. Be3 {[%clk 0:02:32]}  Rxb4 {[%clk 0:01:37]} 21. Qd2 {[%clk 0:02:32]}  Rfb8 {[%clk 0:01:32]} 22. Rfc1 {[%clk 0:02:32]}  Qd8 {[%clk 0:01:21]} 23. Nc3 {[%clk 0:02:19]}  Rxb2 {[%clk 0:01:19]} 24. Qd1 {[%clk 0:02:20]}  Rc8 {[%clk 0:01:01]} 25. Ra6 {[%clk 0:02:17]}  Bf8 {[%clk 0:01:01]} 26. Bg5 {[%clk 0:01:57]}  h6 {[%clk 0:00:53]} 27. Na4 {[%clk 0:01:54]}  Bb3 {[%clk 0:00:37]} 28. Qf3 {[%clk 0:01:17]}  Rxc1+ {[%clk 0:00:26]} 29. Bxc1 {[%clk 0:01:16]}  Rb1 {[%clk 0:00:27]} 30. Qc3 {[%clk 0:01:08]}  Qd7 {[%clk 0:00:20]} 31. Nb2 {[%clk 0:00:58]}  Qb7 {[%clk 0:00:17]} 32. Ra3 {[%clk 0:00:52]}  Be6 {[%clk 0:00:16]} 33. Kh2 {[%clk 0:00:52]}  Nxe4 {[%clk 0:00:13]} 34. Qc2 {[%clk 0:00:46]}  d5 {[%clk 0:00:12]} 35. Ra4 {[%clk 0:00:40]}  Rxc1 {[%clk 0:00:11]} 36. Qxc1 {[%clk 0:00:41]}  Nxf2 {[%clk 0:00:12]} 37. Qc3 {[%clk 0:00:32]}  Qb8 {[%clk 0:00:08]} 38. Nd3 {[%clk 0:00:29]}  Nxd3 {[%clk 0:00:08]} 39. Qxd3 {[%clk 0:00:30]}  e4 {[%clk 0:00:08]} 40. Qe3 {[%clk 0:00:28]}  Qe5 {[%clk 0:00:08]} 41. Ra8 {[%clk 0:00:24]}  Kg7 {[%clk 0:00:08]} 42. Ra5 {[%clk 0:00:19]}  Bd6 {[%clk 0:00:07]} 43. h4 {[%clk 0:00:19]}  g5 {[%clk 0:00:06]} 44. hxg5 {[%clk 0:00:18]}  hxg5 {[%clk 0:00:07]} 45. Ra6 {[%clk 0:00:17]}  g4 {[%clk 0:00:05]} 46. Rc6 {[%clk 0:00:15]}  Kg6 {[%clk 0:00:05]} 47. Ra6 {[%clk 0:00:12]}  Kg7 {[%clk 0:00:05]} 48. Rc6 {[%clk 0:00:12]}  Be7 {[%clk 0:00:05]} 49. Qa7 {[%clk 0:00:06]}  Bf6 {[%clk 0:00:04]} 50. Qf2 {[%clk 0:00:05]}  e3 {[%clk 0:00:04]} 51. Qe2 {[%clk 0:00:05]}  d4 {[%clk 0:00:04]} 52. Rc1 {[%clk 0:00:04]}  Qh5+ {[%clk 0:00:04]} 53. Kg1 {[%clk 0:00:04]}  Qe5 {[%clk 0:00:05]} 54. Kh2 {[%clk 0:00:04]}  Bf5 {[%clk 0:00:05]} 55. Rf1 {[%clk 0:00:03]}  d3 {[%clk 0:00:04]} 56. Qe1 {[%clk 0:00:03]}  e2 {[%clk 0:00:04]} 57. Rf4 {[%clk 0:00:03]}  Bg6 {[%clk 0:00:04]} 58. Rxg4 {[%clk 0:00:03]}  Qc3 {[%clk 0:00:04]} 0-1


[Site "https://www.chess.com"]

[Event "Titled Tuesday Blitz May 4 2021"]
[White "Radu, David Cr."]
[Black "Elissalt Cardenas, Hector"]
[WhiteFideId "1265717"]
[BlackFideId "3500632"]
[WhiteElo "1596"]
[BlackElo "2231"]
[Result "1-0"]
[Round "10"]
[TimeControl "180+1"]
[Date "2021.05.04"]
[WhiteClock "0:00:52"]
[BlackClock "0:00:01"]

1. e4 {[%clk 0:03:00]}  d6 {[%clk 0:02:35]} 2. d4 {[%clk 0:02:57]}  Nf6 {[%clk 0:02:31]} 3. Nc3 {[%clk 0:02:56]}  e5 {[%clk 0:02:30]} 4. Nf3 {[%clk 0:02:54]}  Nbd7 {[%clk 0:02:30]} 5. Rg1 {[%clk 0:02:54]}  Be7 {[%clk 0:02:25]} 6. g4 {[%clk 0:02:53]}  g6 {[%clk 0:01:58]} 7. Be3 {[%clk 0:02:36]}  c6 {[%clk 0:01:55]} 8. Qd2 {[%clk 0:02:32]}  O-O {[%clk 0:01:54]} 9. O-O-O {[%clk 0:02:30]}  Re8 {[%clk 0:01:48]} 10. h4 {[%clk 0:02:26]}  Qc7 {[%clk 0:01:28]} 11. h5 {[%clk 0:02:17]}  exd4 {[%clk 0:01:22]} 12. Nxd4 {[%clk 0:02:16]}  Ne5 {[%clk 0:01:21]} 13. f3 {[%clk 0:02:13]}  a6 {[%clk 0:01:06]} 14. Be2 {[%clk 0:02:07]}  b5 {[%clk 0:01:02]} 15. g5 {[%clk 0:02:04]}  Nxh5 {[%clk 0:00:51]} 16. f4 {[%clk 0:02:03]}  Nc4 {[%clk 0:00:51]} 17. Bxc4 {[%clk 0:01:49]}  bxc4 {[%clk 0:00:51]} 18. Qe2 {[%clk 0:01:49]}  c5 {[%clk 0:00:39]} 19. Nd5 {[%clk 0:01:36]}  Qb7 {[%clk 0:00:27]} 20. Nf3 {[%clk 0:01:30]}  Be6 {[%clk 0:00:16]} 21. Qxc4 {[%clk 0:01:28]}  Bd8 {[%clk 0:00:14]} 22. Rge1 {[%clk 0:01:14]}  Rb8 {[%clk 0:00:12]} 23. Qc3 {[%clk 0:01:05]}  Ng3 {[%clk 0:00:09]} 24. Bf2 {[%clk 0:01:00]}  Nxe4 {[%clk 0:00:08]} 25. Rxe4 {[%clk 0:00:57]}  Ba5 {[%clk 0:00:07]} 26. Nf6+ {[%clk 0:00:56]}  Kf8 {[%clk 0:00:05]} 27. Nxh7+ {[%clk 0:00:55]}  Kg8 {[%clk 0:00:05]} 28. Nf6+ {[%clk 0:00:55]}  Kf8 {[%clk 0:00:05]} 29. Qxa5 {[%clk 0:00:54]}  Qxb2+ {[%clk 0:00:04]} 30. Kd2 {[%clk 0:00:55]}  Bf5 {[%clk 0:00:01]} 31. Nd7+ {[%clk 0:00:52]} 1-0


[Site "https://www.chess.com"]

[Event "Titled Tuesday Blitz May 4 2021"]
[White "Rakotomaharo, Fy Antenaina"]
[Black "Isajevsky, Anton"]
[WhiteFideId "13100050"]
[BlackFideId "4142500"]
[WhiteElo "2378"]
[BlackElo "2510"]
[Result "1-0"]
[Round "10"]
[TimeControl "180+1"]
[Date "2021.05.04"]
[WhiteClock "0:01:03"]
[BlackClock "0:00:02"]

1. e4 {[%clk 0:03:00]}  c5 {[%clk 0:02:59]} 2. Nf3 {[%clk 0:03:00]}  d6 {[%clk 0:02:59]} 3. d4 {[%clk 0:03:00]}  cxd4 {[%clk 0:03:00]} 4. Nxd4 {[%clk 0:03:01]}  Nf6 {[%clk 0:03:00]} 5. Nc3 {[%clk 0:03:01]}  a6 {[%clk 0:03:01]} 6. Bg5 {[%clk 0:03:00]}  e6 {[%clk 0:03:00]} 7. f4 {[%clk 0:02:57]}  Qc7 {[%clk 0:02:53]} 8. Qf3 {[%clk 0:02:56]}  Nbd7 {[%clk 0:02:50]} 9. O-O-O {[%clk 0:02:55]}  Be7 {[%clk 0:02:44]} 10. Bd3 {[%clk 0:02:49]}  h6 {[%clk 0:02:39]} 11. Bh4 {[%clk 0:02:45]}  g5 {[%clk 0:02:37]} 12. fxg5 {[%clk 0:02:37]}  Ne5 {[%clk 0:02:36]} 13. Qe2 {[%clk 0:02:35]}  Nfg4 {[%clk 0:02:22]} 14. h3 {[%clk 0:02:34]}  hxg5 {[%clk 0:02:17]} 15. Bg3 {[%clk 0:02:32]}  Nxd3+ {[%clk 0:01:41]} 16. cxd3 {[%clk 0:02:25]}  Ne5 {[%clk 0:01:40]} 17. Kb1 {[%clk 0:02:25]}  Bd7 {[%clk 0:01:40]} 18. Rc1 {[%clk 0:02:21]}  Qa5 {[%clk 0:01:35]} 19. Nb3 {[%clk 0:02:20]}  Qb4 {[%clk 0:01:31]} 20. Qc2 {[%clk 0:02:00]}  Rc8 {[%clk 0:01:28]} 21. a3 {[%clk 0:01:59]}  Qb6 {[%clk 0:01:25]} 22. Bf2 {[%clk 0:01:58]}  Qd8 {[%clk 0:01:19]} 23. Qe2 {[%clk 0:01:46]}  Bf6 {[%clk 0:01:10]} 24. d4 {[%clk 0:01:37]}  Nc4 {[%clk 0:01:05]} 25. e5 {[%clk 0:01:38]}  dxe5 {[%clk 0:00:44]} 26. Ne4 {[%clk 0:01:37]}  Bb5 {[%clk 0:00:41]} 27. Qf3 {[%clk 0:01:24]}  Bg7 {[%clk 0:00:30]} 28. Rhd1 {[%clk 0:01:19]}  Qe7 {[%clk 0:00:14]} 29. dxe5 {[%clk 0:01:14]}  Bxe5 {[%clk 0:00:14]} 30. Bd4 {[%clk 0:01:14]}  Rd8 {[%clk 0:00:04]} 31. Rxc4 {[%clk 0:01:03]}  Bxc4 {[%clk 0:00:02]} 32. Bxe5 {[%clk 0:01:03]} 1-0


[Site "https://www.chess.com"]

[Event "Titled Tuesday Blitz May 4 2021"]
[White "Ravi, Thandalam Shanmugam"]
[Black "Mezentsev, Ivan"]
[WhiteFideId "5000238"]
[BlackFideId "13706195"]
[WhiteElo "2215"]
[BlackElo "2295"]
[Result "1/2-1/2"]
[Round "10"]
[TimeControl "180+1"]
[Date "2021.05.04"]
[WhiteClock "0:00:01"]
[BlackClock "0:00:05"]

1. e4 {[%clk 0:03:00]}  c5 {[%clk 0:02:56]} 2. c3 {[%clk 0:03:00]}  Nf6 {[%clk 0:02:54]} 3. e5 {[%clk 0:03:00]}  Nd5 {[%clk 0:02:52]} 4. d4 {[%clk 0:03:01]}  cxd4 {[%clk 0:02:52]} 5. Nf3 {[%clk 0:03:00]}  e6 {[%clk 0:02:51]} 6. cxd4 {[%clk 0:02:59]}  d6 {[%clk 0:02:50]} 7. Bc4 {[%clk 0:02:58]}  Be7 {[%clk 0:02:49]} 8. O-O {[%clk 0:02:55]}  Nc6 {[%clk 0:02:48]} 9. Bxd5 {[%clk 0:02:50]}  exd5 {[%clk 0:02:47]} 10. h3 {[%clk 0:02:50]}  Be6 {[%clk 0:02:46]} 11. Nc3 {[%clk 0:02:50]}  dxe5 {[%clk 0:02:43]} 12. dxe5 {[%clk 0:02:45]}  d4 {[%clk 0:02:33]} 13. Ne2 {[%clk 0:02:35]}  Bc4 {[%clk 0:02:26]} 14. Re1 {[%clk 0:02:30]}  Bxe2 {[%clk 0:02:25]} 15. Rxe2 {[%clk 0:02:28]}  O-O {[%clk 0:02:25]} 16. Bf4 {[%clk 0:02:23]}  Qb6 {[%clk 0:02:21]} 17. Rd2 {[%clk 0:02:20]}  Rad8 {[%clk 0:02:19]} 18. Qe2 {[%clk 0:02:13]}  Qb4 {[%clk 0:01:49]} 19. Qe4 {[%clk 0:01:56]}  f5 {[%clk 0:01:38]} 20. Qd3 {[%clk 0:01:42]}  a6 {[%clk 0:01:20]} 21. Rad1 {[%clk 0:01:31]}  Bc5 {[%clk 0:01:17]} 22. Rc1 {[%clk 0:01:23]}  Bb6 {[%clk 0:01:14]} 23. a3 {[%clk 0:01:01]}  Qb5 {[%clk 0:01:13]} 24. Rc4 {[%clk 0:00:45]}  Qd5 {[%clk 0:01:11]} 25. Rc1 {[%clk 0:00:32]}  Qe4 {[%clk 0:01:01]} 26. Qb3+ {[%clk 0:00:29]}  Kh8 {[%clk 0:00:59]} 27. Bg5 {[%clk 0:00:29]}  Ba5 {[%clk 0:00:41]} 28. Bxd8 {[%clk 0:00:27]}  Bxd2 {[%clk 0:00:32]} 29. Nxd2 {[%clk 0:00:27]}  Qf4 {[%clk 0:00:32]} 30. Qxb7 {[%clk 0:00:13]}  Qxd2 {[%clk 0:00:18]} 31. Rxc6 {[%clk 0:00:08]}  Qe1+ {[%clk 0:00:17]} 32. Kh2 {[%clk 0:00:07]}  Qxe5+ {[%clk 0:00:17]} 33. g3 {[%clk 0:00:07]}  Rxd8 {[%clk 0:00:17]} 34. Qd7 {[%clk 0:00:04]}  Qb8 {[%clk 0:00:13]} 35. Qxf5 {[%clk 0:00:03]}  d3 {[%clk 0:00:13]} 36. Rc1 {[%clk 0:00:01]}  d2 {[%clk 0:00:12]} 37. Rd1 {[%clk 0:00:01]}  Qd6 {[%clk 0:00:12]} 38. Qg5 {[%clk 0:00:01]}  h6 {[%clk 0:00:12]} 39. Qe3 {[%clk 0:00:02]}  Qd5 {[%clk 0:00:12]} 40. b4 {[%clk 0:00:02]}  Qd7 {[%clk 0:00:09]} 41. h4 {[%clk 0:00:02]}  Qd5 {[%clk 0:00:09]} 42. Qe2 {[%clk 0:00:02]}  Qd4 {[%clk 0:00:08]} 43. Qe3 {[%clk 0:00:02]}  Qb2 {[%clk 0:00:08]} 44. Qe2 {[%clk 0:00:02]}  Qc2 {[%clk 0:00:08]} 45. Kg2 {[%clk 0:00:02]}  Qc6+ {[%clk 0:00:07]} 46. Kg1 {[%clk 0:00:02]}  Qc1 {[%clk 0:00:07]} 47. Kh2 {[%clk 0:00:02]}  Qc2 {[%clk 0:00:07]} 48. Kg1 {[%clk 0:00:02]}  Qb2 {[%clk 0:00:06]} 49. Kh2 {[%clk 0:00:01]}  Qc2 {[%clk 0:00:05]} 1/2-1/2


[Site "https://www.chess.com"]

[Event "Titled Tuesday Blitz May 4 2021"]
[White "Region_07"]
[Black "Ranindu2003"]
[WhiteElo "2400"]
[BlackElo "2559"]
[Result "1-0"]
[Round "10"]
[TimeControl "180+1"]
[Date "2021.05.04"]
[WhiteClock "0:00:11"]
[BlackClock "0:01:18"]

1. d4 {[%clk 0:03:00]}  Nf6 {[%clk 0:02:58]} 2. Bg5 {[%clk 0:03:00]}  d5 {[%clk 0:02:57]} 3. Bxf6 {[%clk 0:02:59]}  gxf6 {[%clk 0:02:54]} 4. c4 {[%clk 0:02:59]}  c5 {[%clk 0:02:54]} 5. e3 {[%clk 0:02:57]}  e6 {[%clk 0:02:53]} 6. Nc3 {[%clk 0:02:52]}  cxd4 {[%clk 0:02:51]} 7. exd4 {[%clk 0:02:51]}  dxc4 {[%clk 0:02:50]} 8. Bxc4 {[%clk 0:02:51]}  Nc6 {[%clk 0:02:50]} 9. Nf3 {[%clk 0:02:50]}  Rg8 {[%clk 0:02:46]} 10. O-O {[%clk 0:02:49]}  Ne7 {[%clk 0:02:44]} 11. d5 {[%clk 0:02:42]}  e5 {[%clk 0:02:43]} 12. Bb5+ {[%clk 0:02:06]}  Bd7 {[%clk 0:02:38]} 13. Ne4 {[%clk 0:02:05]}  Qb6 {[%clk 0:02:19]} 14. Bxd7+ {[%clk 0:01:39]}  Kxd7 {[%clk 0:02:15]} 15. d6 {[%clk 0:01:16]}  Bg7 {[%clk 0:02:13]} 16. dxe7+ {[%clk 0:01:15]}  Kxe7 {[%clk 0:02:14]} 17. Nh4 {[%clk 0:01:12]}  Qe6 {[%clk 0:02:07]} 18. Qf3 {[%clk 0:01:09]}  Bh8 {[%clk 0:02:02]} 19. Nf5+ {[%clk 0:01:07]}  Kf8 {[%clk 0:02:01]} 20. Qa3+ {[%clk 0:01:00]}  Ke8 {[%clk 0:02:00]} 21. Rfd1 {[%clk 0:00:52]}  h5 {[%clk 0:01:47]} 22. Rac1 {[%clk 0:00:38]}  Bg7 {[%clk 0:01:34]} 23. Qa4+ {[%clk 0:00:36]}  Kf8 {[%clk 0:01:33]} 24. Qb4+ {[%clk 0:00:32]}  Ke8 {[%clk 0:01:32]} 25. Qb5+ {[%clk 0:00:29]}  Kf8 {[%clk 0:01:31]} 26. Qb4+ {[%clk 0:00:23]}  Ke8 {[%clk 0:01:30]} 27. Ned6+ {[%clk 0:00:22]}  Kf8 {[%clk 0:01:27]} 28. Nc8+ {[%clk 0:00:20]}  Ke8 {[%clk 0:01:26]} 29. Nfd6+ {[%clk 0:00:11]}  Kf8 {[%clk 0:01:18]} 30. Nxb7+ {[%clk 0:00:11]}  Ke8 {[%clk 0:01:18]} 31. Rd8# {[%clk 0:00:11]} 1-0


[Site "https://www.chess.com"]